[Event "Titled Tuesday Blitz May 23 Early 2023"]
[White "Topalov, Aleksandar"]
[Black "Korkmaz, Necmettin"]
[WhiteFideId "925659"]
[BlackFideId "6303285"]
[WhiteElo "2151"]
[BlackElo "2097"]
[Result "1-0"]
[Round "11"]
[TimeControl "180+2"]
[Date "2023.05.23"]
[WhiteClock "0:01:38"]
[BlackClock "0:00:41"]

1. b3 {[%clk 0:02:46]}  e5 {[%clk 0:02:58]} 2. Bb2 {[%clk 0:02:47]}  Nc6 {[%clk 0:02:57]} 3. c4 {[%clk 0:02:47]}  Nf6 {[%clk 0:02:56]} 4. e3 {[%clk 0:02:47]}  d5 {[%clk 0:02:54]} 5. cxd5 {[%clk 0:02:47]}  Nxd5 {[%clk 0:02:55]} 6. a3 {[%clk 0:02:47]}  Be7 {[%clk 0:02:53]} 7. Qc2 {[%clk 0:02:48]}  O-O {[%clk 0:02:52]} 8. Nf3 {[%clk 0:02:48]}  f6 {[%clk 0:02:44]} 9. d3 {[%clk 0:02:48]}  Be6 {[%clk 0:02:40]} 10. Nbd2 {[%clk 0:02:48]}  Qd7 {[%clk 0:02:40]} 11. Be2 {[%clk 0:02:48]}  Rad8 {[%clk 0:02:38]} 12. O-O {[%clk 0:02:48]}  Na5 {[%clk 0:02:36]} 13. d4 {[%clk 0:02:36]}  exd4 {[%clk 0:02:29]} 14. Nxd4 {[%clk 0:02:36]}  Bf7 {[%clk 0:02:24]} 15. b4 {[%clk 0:02:36]}  c5 {[%clk 0:02:11]} 16. bxa5 {[%clk 0:02:30]}  cxd4 {[%clk 0:02:11]} 17. Bxd4 {[%clk 0:02:30]}  Rc8 {[%clk 0:01:44]} 18. Qb2 {[%clk 0:02:29]}  Rfd8 {[%clk 0:01:38]} 19. Nf3 {[%clk 0:02:18]}  b6 {[%clk 0:01:35]} 20. axb6 {[%clk 0:02:17]}  axb6 {[%clk 0:01:36]} 21. Rfc1 {[%clk 0:02:13]}  Bc5 {[%clk 0:01:29]} 22. Bb5 {[%clk 0:02:04]}  Qg4 {[%clk 0:01:25]} 23. h3 {[%clk 0:02:01]}  Qe4 {[%clk 0:01:13]} 24. Ba6 {[%clk 0:01:59]}  Rc7 {[%clk 0:01:10]} 25. a4 {[%clk 0:01:53]}  Nb4 {[%clk 0:00:57]} 26. Be2 {[%clk 0:01:52]}  Nd3 {[%clk 0:00:47]} 27. Bxd3 {[%clk 0:01:51]}  Qxd3 {[%clk 0:00:47]} 28. Rd1 {[%clk 0:01:41]}  Qg6 {[%clk 0:00:46]} 29. Bxc5 {[%clk 0:01:40]}  Rxd1+ {[%clk 0:00:44]} 30. Rxd1 {[%clk 0:01:40]}  bxc5 {[%clk 0:00:44]} 31. Qb8+ {[%clk 0:01:39]}  Be8 {[%clk 0:00:41]} 32. Qxc7 {[%clk 0:01:38]} 1-0


[Site "https://www.chess.com"]

[Event "Titled Tuesday Blitz May 23 Early 2023"]
[White "Fiedorek, Michal"]
[Black "Buscar, Michael"]
[WhiteFideId "1199528"]
[BlackFideId "2603616"]
[WhiteElo "2135"]
[BlackElo "2010"]
[Result "1-0"]
[Round "11"]
[TimeControl "180+2"]
[Date "2023.05.23"]
[WhiteClock "0:00:36"]
[BlackClock "0:00:25"]

1. e4 {[%clk 0:02:59]}  c5 {[%clk 0:01:38]} 2. Nf3 {[%clk 0:02:58]}  Nc6 {[%clk 0:01:37]} 3. d4 {[%clk 0:02:58]}  cxd4 {[%clk 0:01:37]} 4. Nxd4 {[%clk 0:02:58]}  Nf6 {[%clk 0:01:38]} 5. Nc3 {[%clk 0:02:58]}  e5 {[%clk 0:01:39]} 6. Ndb5 {[%clk 0:02:58]}  h6 {[%clk 0:01:39]} 7. Nd6+ {[%clk 0:02:52]}  Bxd6 {[%clk 0:01:39]} 8. Qxd6 {[%clk 0:02:52]}  Qe7 {[%clk 0:01:40]} 9. Qxe7+ {[%clk 0:02:09]}  Kxe7 {[%clk 0:01:41]} 10. Be3 {[%clk 0:02:02]}  d6 {[%clk 0:01:40]} 11. f3 {[%clk 0:02:00]}  Rd8 {[%clk 0:01:40]} 12. O-O-O {[%clk 0:02:00]}  Be6 {[%clk 0:01:39]} 13. h4 {[%clk 0:01:48]}  d5 {[%clk 0:01:35]} 14. exd5 {[%clk 0:01:47]}  Nxd5 {[%clk 0:01:35]} 15. Nxd5+ {[%clk 0:01:43]}  Rxd5 {[%clk 0:01:32]} 16. Rxd5 {[%clk 0:01:39]}  Bxd5 {[%clk 0:01:33]} 17. Bd3 {[%clk 0:01:31]}  Rc8 {[%clk 0:01:29]} 18. a3 {[%clk 0:01:26]}  Nd4 {[%clk 0:01:10]} 19. Re1 {[%clk 0:01:15]}  Nc6 {[%clk 0:00:43]} 20. Kb1 {[%clk 0:00:50]}  Be6 {[%clk 0:00:30]} 21. b3 {[%clk 0:00:44]}  Rd8 {[%clk 0:00:29]} 22. Kb2 {[%clk 0:00:42]}  Kf6 {[%clk 0:00:28]} 23. g4 {[%clk 0:00:39]}  Nd4 {[%clk 0:00:25]} 24. g5+ {[%clk 0:00:37]}  hxg5 {[%clk 0:00:25]} 25. Bxg5# {[%clk 0:00:36]} 1-0


[Site "https://www.chess.com"]

[Event "Titled Tuesday Blitz May 23 Early 2023"]
[White "Golubev, Mikhail"]
[Black "mohsengabr2002"]
[WhiteFideId "14100983"]
[WhiteElo "2374"]
[BlackElo "2297"]
[Result "1-0"]
[Round "11"]
[TimeControl "180+2"]
[Date "2023.05.23"]
[WhiteClock "0:00:10"]
[BlackClock "0:00:05"]

1. e4 {[%clk 0:03:00]}  c5 {[%clk 0:01:05]} 2. Ne2 {[%clk 0:02:59]}  d6 {[%clk 0:01:05]} 3. d4 {[%clk 0:02:59]}  cxd4 {[%clk 0:01:06]} 4. Nxd4 {[%clk 0:03:00]}  a6 {[%clk 0:01:05]} 5. Nc3 {[%clk 0:03:00]}  e5 {[%clk 0:01:06]} 6. Nf5 {[%clk 0:02:59]}  Bxf5 {[%clk 0:01:06]} 7. exf5 {[%clk 0:02:59]}  Be7 {[%clk 0:01:06]} 8. Bc4 {[%clk 0:02:58]}  h6 {[%clk 0:01:05]} 9. Qd5 {[%clk 0:02:35]}  Nf6 {[%clk 0:00:50]} 10. Qxf7+ {[%clk 0:02:33]}  Kd7 {[%clk 0:00:50]} 11. Be3 {[%clk 0:02:00]}  Qf8 {[%clk 0:00:48]} 12. Qe6+ {[%clk 0:01:54]}  Kc7 {[%clk 0:00:48]} 13. O-O-O {[%clk 0:01:47]}  Nc6 {[%clk 0:00:46]} 14. Nd5+ {[%clk 0:01:29]}  Nxd5 {[%clk 0:00:45]} 15. Qxd5 {[%clk 0:01:26]}  Qxf5 {[%clk 0:00:41]} 16. a4 {[%clk 0:01:06]}  Rad8 {[%clk 0:00:31]} 17. Kb1 {[%clk 0:00:55]}  Bg5 {[%clk 0:00:29]} 18. Bd3 {[%clk 0:00:39]}  Qf6 {[%clk 0:00:25]} 19. Be4 {[%clk 0:00:38]}  Bxe3 {[%clk 0:00:24]} 20. fxe3 {[%clk 0:00:39]}  Rhf8 {[%clk 0:00:21]} 21. Rhf1 {[%clk 0:00:37]}  Qe7 {[%clk 0:00:21]} 22. Rf3 {[%clk 0:00:34]}  Rxf3 {[%clk 0:00:20]} 23. gxf3 {[%clk 0:00:34]}  g5 {[%clk 0:00:20]} 24. Rd3 {[%clk 0:00:34]}  Rb8 {[%clk 0:00:18]} 25. Rc3 {[%clk 0:00:33]}  Qd7 {[%clk 0:00:18]} 26. a5 {[%clk 0:00:32]}  Qe8 {[%clk 0:00:15]} 27. Qb3 {[%clk 0:00:32]}  Qd8 {[%clk 0:00:14]} 28. Qb6+ {[%clk 0:00:31]}  Kd7 {[%clk 0:00:14]} 29. Bxc6+ {[%clk 0:00:29]}  bxc6 {[%clk 0:00:14]} 30. Qxc6+ {[%clk 0:00:29]}  Ke7 {[%clk 0:00:15]} 31. Qxa6 {[%clk 0:00:27]}  Ra8 {[%clk 0:00:15]} 32. Qb7+ {[%clk 0:00:26]}  Ke6 {[%clk 0:00:14]} 33. a6 {[%clk 0:00:24]}  Rb8 {[%clk 0:00:14]} 34. Qc7 {[%clk 0:00:20]}  Qxc7 {[%clk 0:00:12]} 35. Rxc7 {[%clk 0:00:20]}  Ra8 {[%clk 0:00:13]} 36. a7 {[%clk 0:00:20]}  d5 {[%clk 0:00:14]} 37. Kc1 {[%clk 0:00:20]}  e4 {[%clk 0:00:14]} 38. fxe4 {[%clk 0:00:19]}  dxe4 {[%clk 0:00:15]} 39. Kd2 {[%clk 0:00:19]}  h5 {[%clk 0:00:14]} 40. Ke2 {[%clk 0:00:19]}  Kd6 {[%clk 0:00:14]} 41. Rg7 {[%clk 0:00:18]}  g4 {[%clk 0:00:14]} 42. b4 {[%clk 0:00:17]}  Kc6 {[%clk 0:00:14]} 43. c4 {[%clk 0:00:17]}  Kb6 {[%clk 0:00:13]} 44. Kf2 {[%clk 0:00:15]}  Rf8+ {[%clk 0:00:12]} 45. Kg2 {[%clk 0:00:16]}  h4 {[%clk 0:00:11]} 46. c5+ {[%clk 0:00:14]}  Kb5 {[%clk 0:00:11]} 47. Rb7+ {[%clk 0:00:13]}  Kc4 {[%clk 0:00:10]} 48. Rb8 {[%clk 0:00:13]}  h3+ {[%clk 0:00:09]} 49. Kg1 {[%clk 0:00:11]}  Rf3 {[%clk 0:00:07]} 50. a8=Q {[%clk 0:00:10]}  Rxe3 {[%clk 0:00:07]} 51. Qa2+ {[%clk 0:00:10]}  Kd4 {[%clk 0:00:06]} 52. Rd8+ {[%clk 0:00:09]}  Ke5 {[%clk 0:00:06]} 53. Qd5+ {[%clk 0:00:09]}  Kf6 {[%clk 0:00:05]} 54. Rf8+ {[%clk 0:00:09]}  Ke7 {[%clk 0:00:05]} 55. Rf7+ {[%clk 0:00:09]}  Ke8 {[%clk 0:00:05]} 56. Qd7# {[%clk 0:00:10]} 1-0


[Site "https://www.chess.com"]

[Event "Titled Tuesday Blitz May 23 Early 2023"]
[White "Martin, Lewis"]
[Black "Pinto, Daniel"]
[WhiteFideId "410551"]
[BlackFideId "3303144"]
[WhiteElo "2145"]
[BlackElo "2145"]
[Result "1-0"]
[Round "11"]
[TimeControl "180+2"]
[Date "2023.05.23"]
[WhiteClock "0:00:03"]
[BlackClock "0:00:01"]

1. e4 {[%clk 0:03:00]}  c5 {[%clk 0:02:58]} 2. Nf3 {[%clk 0:03:01]}  Nc6 {[%clk 0:02:59]} 3. d4 {[%clk 0:03:01]}  cxd4 {[%clk 0:03:00]} 4. Nxd4 {[%clk 0:03:02]}  Nf6 {[%clk 0:03:01]} 5. Nc3 {[%clk 0:03:01]}  e5 {[%clk 0:03:01]} 6. Ndb5 {[%clk 0:03:02]}  h6 {[%clk 0:03:01]} 7. Nd6+ {[%clk 0:02:55]}  Bxd6 {[%clk 0:03:00]} 8. Qxd6 {[%clk 0:02:56]}  Qe7 {[%clk 0:03:01]} 9. Qxe7+ {[%clk 0:02:53]}  Kxe7 {[%clk 0:03:02]} 10. Bc4 {[%clk 0:02:52]}  d6 {[%clk 0:03:02]} 11. Be3 {[%clk 0:02:52]}  a6 {[%clk 0:02:58]} 12. f3 {[%clk 0:02:49]}  Be6 {[%clk 0:02:48]} 13. Bxe6 {[%clk 0:02:38]}  fxe6 {[%clk 0:02:49]} 14. O-O-O {[%clk 0:02:37]}  b5 {[%clk 0:02:49]} 15. a3 {[%clk 0:02:32]}  Na5 {[%clk 0:02:32]} 16. g4 {[%clk 0:02:28]}  Nc4 {[%clk 0:02:31]} 17. Bf2 {[%clk 0:02:23]}  Rhc8 {[%clk 0:02:31]} 18. Rd3 {[%clk 0:02:18]}  Rab8 {[%clk 0:02:20]} 19. Na2 {[%clk 0:02:10]}  a5 {[%clk 0:02:19]} 20. Rhd1 {[%clk 0:02:06]}  d5 {[%clk 0:02:18]} 21. exd5 {[%clk 0:01:57]}  exd5 {[%clk 0:02:05]} 22. h4 {[%clk 0:01:57]}  e4 {[%clk 0:01:32]} 23. fxe4 {[%clk 0:01:38]}  dxe4 {[%clk 0:01:32]} 24. Rd4 {[%clk 0:01:31]}  g5 {[%clk 0:01:32]} 25. hxg5 {[%clk 0:01:30]}  hxg5 {[%clk 0:01:32]} 26. Bg3 {[%clk 0:01:28]}  Rb7 {[%clk 0:01:31]} 27. b3 {[%clk 0:01:22]}  Ne3 {[%clk 0:01:18]} 28. R1d2 {[%clk 0:01:22]}  Nexg4 {[%clk 0:00:38]} 29. Kb2 {[%clk 0:01:12]}  Rd7 {[%clk 0:00:32]} 30. Rxd7+ {[%clk 0:01:06]}  Nxd7 {[%clk 0:00:33]} 31. Nc3 {[%clk 0:01:05]}  Ndf6 {[%clk 0:00:22]} 32. Nxb5 {[%clk 0:01:02]}  e3 {[%clk 0:00:20]} 33. Re2 {[%clk 0:01:01]}  Ne4 {[%clk 0:00:20]} 34. Be1 {[%clk 0:00:59]}  Rd8 {[%clk 0:00:16]} 35. Bxa5 {[%clk 0:00:50]}  Rd5 {[%clk 0:00:17]} 36. Bb4+ {[%clk 0:00:40]}  Ke6 {[%clk 0:00:15]} 37. Nc7+ {[%clk 0:00:39]}  Ke5 {[%clk 0:00:15]} 38. Nxd5 {[%clk 0:00:39]}  Kxd5 {[%clk 0:00:16]} 39. a4 {[%clk 0:00:34]}  Kd4 {[%clk 0:00:14]} 40. Be1 {[%clk 0:00:33]}  Ne5 {[%clk 0:00:14]} 41. a5 {[%clk 0:00:30]}  Nc6 {[%clk 0:00:14]} 42. a6 {[%clk 0:00:27]}  Nc5 {[%clk 0:00:10]} 43. b4 {[%clk 0:00:19]}  Na4+ {[%clk 0:00:11]} 44. Kb3 {[%clk 0:00:19]}  Nb6 {[%clk 0:00:11]} 45. Bc3+ {[%clk 0:00:10]}  Ke4 {[%clk 0:00:11]} 46. b5 {[%clk 0:00:09]}  Na7 {[%clk 0:00:03]} 47. Kb4 {[%clk 0:00:07]}  Kf3 {[%clk 0:00:03]} 48. Re1 {[%clk 0:00:07]}  e2 {[%clk 0:00:02]} 49. Rh1 {[%clk 0:00:06]}  Nd5+ {[%clk 0:00:02]} 50. Kc4 {[%clk 0:00:06]}  Nxc3 {[%clk 0:00:03]} 51. Kxc3 {[%clk 0:00:06]}  Nxb5+ {[%clk 0:00:03]} 52. Kd2 {[%clk 0:00:07]}  Nd4 {[%clk 0:00:03]} 53. c3 {[%clk 0:00:04]}  Nb3+ {[%clk 0:00:01]} 54. Kc2 {[%clk 0:00:04]}  Nc5 {[%clk 0:00:01]} 55. a7 {[%clk 0:00:03]}  g4 {[%clk 0:00:01]} 56. a8=Q+ {[%clk 0:00:03]} 1-0


[Site "https://www.chess.com"]

[Event "Titled Tuesday Blitz May 23 Early 2023"]
[White "Jakubowska, Anna"]
[Black "Sanudula, K M Dahamdi"]
[WhiteFideId "1121952"]
[BlackFideId "9932470"]
[WhiteElo "2001"]
[BlackElo "1556"]
[Result "1/2-1/2"]
[Round "11"]
[TimeControl "180+2"]
[Date "2023.05.23"]
[WhiteClock "0:00:09"]
[BlackClock "0:00:07"]

1. e4 {[%clk 0:03:00]}  d5 {[%clk 0:02:58]} 2. exd5 {[%clk 0:02:59]}  Qxd5 {[%clk 0:02:58]} 3. Nc3 {[%clk 0:02:58]}  Qa5 {[%clk 0:02:59]} 4. Bc4 {[%clk 0:02:57]}  Nf6 {[%clk 0:02:59]} 5. d4 {[%clk 0:02:57]}  Bf5 {[%clk 0:02:59]} 6. Ne2 {[%clk 0:02:57]}  e6 {[%clk 0:02:57]} 7. O-O {[%clk 0:02:57]}  c6 {[%clk 0:02:54]} 8. Ng3 {[%clk 0:02:56]}  Bg6 {[%clk 0:02:53]} 9. Bd2 {[%clk 0:02:56]}  Be7 {[%clk 0:02:49]} 10. Nd5 {[%clk 0:02:45]}  Qd8 {[%clk 0:02:47]} 11. Nxe7 {[%clk 0:02:45]}  Qxe7 {[%clk 0:02:45]} 12. a3 {[%clk 0:02:40]}  O-O {[%clk 0:02:45]} 13. Bb4 {[%clk 0:02:40]}  Qd7 {[%clk 0:02:43]} 14. Bxf8 {[%clk 0:02:39]}  Kxf8 {[%clk 0:02:44]} 15. c3 {[%clk 0:02:36]}  b5 {[%clk 0:02:42]} 16. Bd3 {[%clk 0:02:35]}  Na6 {[%clk 0:02:42]} 17. Bxg6 {[%clk 0:02:33]}  hxg6 {[%clk 0:02:42]} 18. Qf3 {[%clk 0:02:33]}  Rd8 {[%clk 0:02:40]} 19. Rad1 {[%clk 0:02:31]}  Nc7 {[%clk 0:02:38]} 20. Rfe1 {[%clk 0:02:27]}  Ncd5 {[%clk 0:02:36]} 21. Ne4 {[%clk 0:02:25]}  Nxe4 {[%clk 0:02:36]} 22. Qxe4 {[%clk 0:02:24]}  Nb6 {[%clk 0:02:36]} 23. h3 {[%clk 0:02:18]}  Nc4 {[%clk 0:02:35]} 24. Qe2 {[%clk 0:02:17]}  Qd6 {[%clk 0:02:34]} 25. Rd3 {[%clk 0:02:16]}  a5 {[%clk 0:02:31]} 26. Red1 {[%clk 0:02:15]}  a4 {[%clk 0:02:30]} 27. Rf3 {[%clk 0:02:09]}  Kg8 {[%clk 0:02:29]} 28. Re1 {[%clk 0:02:04]}  Qe7 {[%clk 0:02:26]} 29. Qe4 {[%clk 0:02:01]}  Nd2 {[%clk 0:02:19]} 30. Qxc6 {[%clk 0:01:57]}  Nxf3+ {[%clk 0:02:19]} 31. Qxf3 {[%clk 0:01:58]}  Qg5 {[%clk 0:02:16]} 32. Kh2 {[%clk 0:01:55]}  Qd2 {[%clk 0:02:15]} 33. Re2 {[%clk 0:01:54]}  Qd1 {[%clk 0:02:12]} 34. Qe3 {[%clk 0:01:40]}  Qb3 {[%clk 0:02:10]} 35. Qe5 {[%clk 0:01:37]}  Rd5 {[%clk 0:02:06]} 36. Qb8+ {[%clk 0:01:32]}  Kh7 {[%clk 0:02:06]} 37. Qe8 {[%clk 0:01:29]}  Rf5 {[%clk 0:02:01]} 38. Qc6 {[%clk 0:01:26]}  Qd1 {[%clk 0:01:56]} 39. Qe4 {[%clk 0:01:19]}  Rg5 {[%clk 0:01:32]} 40. Qh4+ {[%clk 0:01:09]}  Rh5 {[%clk 0:01:31]} 41. Qg4 {[%clk 0:01:07]}  Rf5 {[%clk 0:01:20]} 42. Re5 {[%clk 0:01:00]}  Qc2 {[%clk 0:01:01]} 43. Qh4+ {[%clk 0:00:47]}  Kg8 {[%clk 0:00:56]} 44. Rxf5 {[%clk 0:00:44]}  gxf5 {[%clk 0:00:54]} 45. Qd8+ {[%clk 0:00:39]}  Kh7 {[%clk 0:00:54]} 46. Qd7 {[%clk 0:00:36]}  Qxb2 {[%clk 0:00:40]} 47. Qxf7 {[%clk 0:00:34]}  Qxf2 {[%clk 0:00:28]} 48. Qxe6 {[%clk 0:00:29]}  Qf4+ {[%clk 0:00:28]} 49. Kg1 {[%clk 0:00:29]}  Qc1+ {[%clk 0:00:28]} 50. Kf2 {[%clk 0:00:26]}  Qf4+ {[%clk 0:00:25]} 51. Ke1 {[%clk 0:00:19]}  Qc1+ {[%clk 0:00:24]} 52. Ke2 {[%clk 0:00:19]}  Qc2+ {[%clk 0:00:22]} 53. Kf1 {[%clk 0:00:18]}  Qc1+ {[%clk 0:00:22]} 54. Qe1 {[%clk 0:00:16]}  Qxa3 {[%clk 0:00:22]} 55. Qh4+ {[%clk 0:00:16]}  Kg8 {[%clk 0:00:21]} 56. Qd8+ {[%clk 0:00:15]}  Qf8 {[%clk 0:00:20]} 57. Qd5+ {[%clk 0:00:15]}  Kh7 {[%clk 0:00:17]} 58. Qxb5 {[%clk 0:00:16]}  a3 {[%clk 0:00:15]} 59. Qa5 {[%clk 0:00:16]}  Kh8 {[%clk 0:00:14]} 60. Kg1 {[%clk 0:00:14]}  Qe7 {[%clk 0:00:13]} 61. Qxf5 {[%clk 0:00:12]}  a2 {[%clk 0:00:13]} 62. Qh5+ {[%clk 0:00:12]}  Kg8 {[%clk 0:00:12]} 63. Qd5+ {[%clk 0:00:12]}  Qf7 {[%clk 0:00:12]} 64. Qa8+ {[%clk 0:00:12]}  Kh7 {[%clk 0:00:11]} 65. d5 {[%clk 0:00:13]}  a1=Q+ {[%clk 0:00:10]} 66. Qxa1 {[%clk 0:00:11]}  Qxd5 {[%clk 0:00:11]} 67. Qb1+ {[%clk 0:00:11]}  Kh8 {[%clk 0:00:10]} 68. Qc2 {[%clk 0:00:08]}  Qc5+ {[%clk 0:00:10]} 69. Kh1 {[%clk 0:00:08]}  Qe5 {[%clk 0:00:10]} 70. Qd2 {[%clk 0:00:07]}  Qf5 {[%clk 0:00:09]} 71. Qd8+ {[%clk 0:00:07]}  Kh7 {[%clk 0:00:08]} 72. Qd2 {[%clk 0:00:07]}  Qf1+ {[%clk 0:00:07]} 73. Kh2 {[%clk 0:00:07]}  Qf5 {[%clk 0:00:07]} 74. g4 {[%clk 0:00:07]}  Qe5+ {[%clk 0:00:07]} 75. Kg2 {[%clk 0:00:07]}  Qe4+ {[%clk 0:00:07]} 76. Kf2 {[%clk 0:00:07]}  Qh1 {[%clk 0:00:06]} 77. Qd3+ {[%clk 0:00:07]}  Kh8 {[%clk 0:00:05]} 78. c4 {[%clk 0:00:07]}  Qh2+ {[%clk 0:00:05]} 79. Ke1 {[%clk 0:00:08]}  Qh1+ {[%clk 0:00:05]} 80. Kd2 {[%clk 0:00:08]}  Qh2+ {[%clk 0:00:05]} 81. Kc3 {[%clk 0:00:08]}  Qe5+ {[%clk 0:00:06]} 82. Qd4 {[%clk 0:00:09]}  Qg3+ {[%clk 0:00:06]} 83. Kb4 {[%clk 0:00:09]}  Qb8+ {[%clk 0:00:06]} 84. Kc3 {[%clk 0:00:08]}  Qg3+ {[%clk 0:00:07]} 85. Qd3 {[%clk 0:00:09]}  Qe5+ {[%clk 0:00:07]} 86. Kb3 {[%clk 0:00:09]}  Qb8+ {[%clk 0:00:07]} 87. Kc2 {[%clk 0:00:09]}  Qh2+ {[%clk 0:00:07]} 88. Kc3 {[%clk 0:00:09]}  Qe5+ {[%clk 0:00:07]} 1/2-1/2


[Site "https://www.chess.com"]

[Event "Titled Tuesday Blitz May 23 Early 2023"]
[White "ChesscularGodofchess"]
[Black "Petrova, Irina"]
[BlackFideId "14124122"]
[WhiteElo "2185"]
[BlackElo "2084"]
[Result "0-1"]
[Round "11"]
[TimeControl "180+2"]
[Date "2023.05.23"]
[WhiteClock "0:01:31"]
[BlackClock "0:01:33"]

1. d4 {[%clk 0:02:49]}  d6 {[%clk 0:03:00]} 2. Nf3 {[%clk 0:02:48]}  g6 {[%clk 0:03:01]} 3. Nbd2 {[%clk 0:02:49]}  Bg7 {[%clk 0:03:02]} 4. e4 {[%clk 0:02:50]}  Nf6 {[%clk 0:03:01]} 5. Bc4 {[%clk 0:02:48]}  O-O {[%clk 0:03:01]} 6. O-O {[%clk 0:02:48]}  Nc6 {[%clk 0:03:02]} 7. c3 {[%clk 0:02:48]}  e5 {[%clk 0:02:56]} 8. dxe5 {[%clk 0:02:48]}  Nxe5 {[%clk 0:02:57]} 9. Nxe5 {[%clk 0:02:48]}  dxe5 {[%clk 0:02:58]} 10. Qc2 {[%clk 0:02:44]}  c6 {[%clk 0:02:55]} 11. a4 {[%clk 0:02:44]}  Qe7 {[%clk 0:02:54]} 12. b3 {[%clk 0:02:42]}  Be6 {[%clk 0:02:49]} 13. Ba3 {[%clk 0:02:39]}  c5 {[%clk 0:02:46]} 14. Rfd1 {[%clk 0:02:31]}  b6 {[%clk 0:02:42]} 15. f3 {[%clk 0:02:26]}  Nh5 {[%clk 0:02:41]} 16. Bxe6 {[%clk 0:02:24]}  Qxe6 {[%clk 0:02:39]} 17. Nc4 {[%clk 0:02:24]}  Nf4 {[%clk 0:02:35]} 18. Rd6 {[%clk 0:02:23]}  Qe7 {[%clk 0:02:35]} 19. Rad1 {[%clk 0:02:23]}  Qg5 {[%clk 0:02:34]} 20. Kf1 {[%clk 0:02:15]}  f5 {[%clk 0:02:23]} 21. Bc1 {[%clk 0:02:04]}  fxe4 {[%clk 0:02:00]} 22. Bxf4 {[%clk 0:02:03]}  Qxf4 {[%clk 0:01:53]} 23. Qd2 {[%clk 0:02:00]}  exf3 {[%clk 0:01:45]} 24. Qd5+ {[%clk 0:01:59]}  Kh8 {[%clk 0:01:44]} 25. g3 {[%clk 0:01:56]}  Qf5 {[%clk 0:01:37]} 26. Ne3 {[%clk 0:01:30]}  Qh3+ {[%clk 0:01:35]} 27. Kg1 {[%clk 0:01:31]}  f2+ {[%clk 0:01:35]} 28. Kh1 {[%clk 0:01:30]}  f1=Q+ {[%clk 0:01:33]} 29. Rxf1 {[%clk 0:01:31]}  Rxf1+ {[%clk 0:01:33]} 30. Nxf1 {[%clk 0:01:31]}  Qxf1# {[%clk 0:01:33]} 0-1


[Site "https://www.chess.com"]

[Event "Titled Tuesday Blitz May 23 Early 2023"]
[White "Kriti Mayur Patel"]
[Black "Kohler, Aran"]
[WhiteFideId "35061780"]
[BlackFideId "1002856"]
[WhiteElo "1306"]
[BlackElo "2384"]
[Result "1-0"]
[Round "11"]
[TimeControl "180+2"]
[Date "2023.05.23"]
[WhiteClock "0:01:48"]
[BlackClock "0:00:21"]

1. e4 {[%clk 0:03:00]}  c5 {[%clk 0:02:54]} 2. d4 {[%clk 0:03:01]}  cxd4 {[%clk 0:02:53]} 3. c3 {[%clk 0:03:01]}  dxc3 {[%clk 0:02:54]} 4. Nxc3 {[%clk 0:03:02]}  Nc6 {[%clk 0:02:53]} 5. Nf3 {[%clk 0:03:03]}  d6 {[%clk 0:02:53]} 6. Bc4 {[%clk 0:03:03]}  e6 {[%clk 0:02:51]} 7. O-O {[%clk 0:03:04]}  a6 {[%clk 0:02:52]} 8. Qe2 {[%clk 0:03:04]}  Be7 {[%clk 0:02:52]} 9. Rd1 {[%clk 0:03:04]}  Qc7 {[%clk 0:02:49]} 10. Bf4 {[%clk 0:03:04]}  Ne5 {[%clk 0:02:34]} 11. Nxe5 {[%clk 0:02:57]}  dxe5 {[%clk 0:02:33]} 12. Be3 {[%clk 0:02:58]}  b5 {[%clk 0:02:31]} 13. Bb3 {[%clk 0:02:57]}  Nf6 {[%clk 0:02:26]} 14. Rac1 {[%clk 0:02:58]}  Qb8 {[%clk 0:02:26]} 15. Qd2 {[%clk 0:02:49]}  O-O {[%clk 0:02:26]} 16. f4 {[%clk 0:02:50]}  Bb7 {[%clk 0:02:15]} 17. f5 {[%clk 0:02:42]}  b4 {[%clk 0:02:03]} 18. Na4 {[%clk 0:02:36]}  Nxe4 {[%clk 0:02:04]} 19. Qe2 {[%clk 0:02:29]}  exf5 {[%clk 0:01:49]} 20. Nb6 {[%clk 0:02:28]}  f4 {[%clk 0:01:25]} 21. Nd7 {[%clk 0:02:20]}  Qe8 {[%clk 0:01:20]} 22. Bb6 {[%clk 0:02:15]}  Nd6 {[%clk 0:01:13]} 23. Nxf8 {[%clk 0:02:14]}  Qxf8 {[%clk 0:01:13]} 24. Qxe5 {[%clk 0:02:11]}  f3 {[%clk 0:01:08]} 25. Rc7 {[%clk 0:02:06]}  fxg2 {[%clk 0:00:53]} 26. Rxe7 {[%clk 0:02:02]}  Kh8 {[%clk 0:00:20]} 27. Qxd6 {[%clk 0:01:51]}  f6 {[%clk 0:00:20]} 28. Rxb7 {[%clk 0:01:50]}  Qe8 {[%clk 0:00:21]} 29. Qe7 {[%clk 0:01:48]}  Qh5 {[%clk 0:00:21]} 30. Qxg7# {[%clk 0:01:48]} 1-0


[Site "https://www.chess.com"]

[Event "Titled Tuesday Blitz May 23 Early 2023"]
[White "littlepillow2010"]
[Black "Fajdetic, Hrvoje"]
[BlackFideId "14501945"]
[WhiteElo "2334"]
[BlackElo "2185"]
[Result "0-1"]
[Round "11"]
[TimeControl "180+2"]
[Date "2023.05.23"]
[WhiteClock "0:00:00"]
[BlackClock "0:00:04"]

1. e4 {[%clk 0:03:00]}  c5 {[%clk 0:02:57]} 2. c3 {[%clk 0:02:58]}  d5 {[%clk 0:02:56]} 3. Nf3 {[%clk 0:02:48]}  dxe4 {[%clk 0:02:55]} 4. Ng5 {[%clk 0:02:48]}  Nf6 {[%clk 0:02:55]} 5. Nxe4 {[%clk 0:02:46]}  Nxe4 {[%clk 0:02:50]} 6. Qa4+ {[%clk 0:02:46]}  Bd7 {[%clk 0:02:50]} 7. Qxe4 {[%clk 0:02:47]}  Bc6 {[%clk 0:02:49]} 8. Qc2 {[%clk 0:02:47]}  Qd5 {[%clk 0:02:31]} 9. d3 {[%clk 0:02:47]}  Nd7 {[%clk 0:02:25]} 10. Be3 {[%clk 0:02:45]}  O-O-O {[%clk 0:02:19]} 11. Nd2 {[%clk 0:02:42]}  Ne5 {[%clk 0:02:16]} 12. d4 {[%clk 0:02:41]}  Ng4 {[%clk 0:02:10]} 13. b3 {[%clk 0:02:33]}  Nxe3 {[%clk 0:01:51]} 14. fxe3 {[%clk 0:02:29]}  cxd4 {[%clk 0:01:42]} 15. cxd4 {[%clk 0:02:25]}  e5 {[%clk 0:01:33]} 16. Bc4 {[%clk 0:02:13]}  Qxg2 {[%clk 0:01:28]} 17. O-O-O {[%clk 0:02:13]}  Ba3+ {[%clk 0:01:22]} 18. Kb1 {[%clk 0:02:12]}  exd4 {[%clk 0:01:22]} 19. exd4 {[%clk 0:02:08]}  Rxd4 {[%clk 0:01:04]} 20. Rhg1 {[%clk 0:01:35]}  Qxh2 {[%clk 0:00:38]} 21. Bb5 {[%clk 0:00:58]}  Rxd2 {[%clk 0:00:14]} 22. Qxd2 {[%clk 0:00:42]}  Qxd2 {[%clk 0:00:13]} 23. Rxd2 {[%clk 0:00:43]}  Bxb5 {[%clk 0:00:12]} 24. Rxg7 {[%clk 0:00:43]}  Rf8 {[%clk 0:00:09]} 25. Rxh7 {[%clk 0:00:43]}  Bb4 {[%clk 0:00:08]} 26. Rc2+ {[%clk 0:00:32]}  Kb8 {[%clk 0:00:07]} 27. Rh3 {[%clk 0:00:32]}  f5 {[%clk 0:00:06]} 28. Rf2 {[%clk 0:00:26]}  f4 {[%clk 0:00:05]} 29. Kb2 {[%clk 0:00:19]}  Bc6 {[%clk 0:00:04]} 30. Rh4 {[%clk 0:00:15]}  Bd6 {[%clk 0:00:03]} 31. Kc3 {[%clk 0:00:11]}  f3 {[%clk 0:00:02]} 32. Rh3 {[%clk 0:00:12]}  Bc5 {[%clk 0:00:02]} 33. Rf1 {[%clk 0:00:10]}  a5 {[%clk 0:00:02]} 34. Kc4 {[%clk 0:00:09]}  Bb6 {[%clk 0:00:02]} 35. a4 {[%clk 0:00:08]}  f2 {[%clk 0:00:02]} 36. Rg3 {[%clk 0:00:09]}  Rf4+ {[%clk 0:00:01]} 37. Kc3 {[%clk 0:00:08]}  Be4 {[%clk 0:00:02]} 38. Kd2 {[%clk 0:00:08]}  Bd5 {[%clk 0:00:01]} 39. Ke2 {[%clk 0:00:06]}  Bxb3 {[%clk 0:00:01]} 40. Rxb3 {[%clk 0:00:06]}  Re4+ {[%clk 0:00:01]} 41. Kd2 {[%clk 0:00:06]}  Rd4+ {[%clk 0:00:01]} 42. Ke2 {[%clk 0:00:04]}  Rd6 {[%clk 0:00:02]} 43. Rf3 {[%clk 0:00:03]}  Ka7 {[%clk 0:00:02]} 44. Rf5 {[%clk 0:00:03]}  Re6+ {[%clk 0:00:02]} 45. Kf3 {[%clk 0:00:03]}  Rc6 {[%clk 0:00:03]} 46. Kg2 {[%clk 0:00:03]}  Rc2 {[%clk 0:00:03]} 47. Rf4 {[%clk 0:00:03]}  Ka6 {[%clk 0:00:04]} 48. Re4 {[%clk 0:00:03]}  Ra2 {[%clk 0:00:04]} 49. Rf4 {[%clk 0:00:03]}  Ra3 {[%clk 0:00:04]} 50. Rh1 {[%clk 0:00:03]}  Ra2 {[%clk 0:00:05]} 51. Rg1 {[%clk 0:00:00]}  fxg1=Q+ {[%clk 0:00:04]} 0-1


[Site "https://www.chess.com"]